fUST/lending_fUST_20240213
["ID","MTS","AMOUNT","RATE_DAILY","PERIOD"]
[313896056,1707780642276,-500.0,0.00024931,2]
[313896057,1707780642286,-274.58,0.00024931,2]
[313896058,1707780642296,-154.98450155,0.00025,2]
[313896059,1707780642305,-7412.2245313,0.00025,2]
[313896060,1707780642314,-335.81448194,0.00025204,2]
[313896061,1707780642323,-500.0,0.00025205,2]
[313896062,1707780642332,-500.0,0.00025205,2]
[313896063,1707780642341,-500.0,0.00025205,2]
[313896064,1707780642350,-189.42533975,0.00025205,2]
[313896065,1707780642359,-500.0,0.00025479,2]
[313896066,1707780642368,-500.0,0.00025479,2]
[313896067,1707780642377,-500.0,0.00025479,2]
[313896068,1707780642386,-500.0,0.00025753,2]
[313896069,1707780642395,-500.0,0.00025753,2]
[313896070,1707780642404,-500.0,0.00025753,2]
[313896071,1707780642414,-603.06785962,0.000259,2]
[313896072,1707780642423,-280.68844006,0.00026,2]
[313896073,1707780642432,-500.0,0.00026027,2]
[313896074,1707780642441,-500.0,0.00026027,2]
[313896075,1707780642451,-500.0,0.00026027,2]
[313896076,1707780642461,-500.0,0.00026301,2]
[313896077,1707780642469,-500.0,0.00026301,2]
[313896078,1707780642478,-500.0,0.00026301,2]
[313896079,1707780642488,-200.0,0.00026345,15]
[313896080,1707780642497,-348.0,0.00026345,15]
[313896081,1707780642507,-500.0,0.00026575,2]
[313896082,1707780642516,-500.0,0.00026575,2]
[313896083,1707780642525,-207.11068042,0.00026575,2]
[313896084,1707780642535,-201.41,0.000268,4]
[313896085,1707780642545,-189.48818747,0.00026835,2]
[313896086,1707780642554,-500.0,0.00026849,2]
[313896087,1707780642564,-500.0,0.00026849,2]
[313896088,1707780642574,-3062.68810289,0.00027122,2]
[313896089,1707780642583,-459.09881123,0.00027123,2]
[313896090,1707780642593,-500.0,0.00027123,2]
[313896091,1707780642602,-502.72750921,0.00027397,14]
[313896092,1707780642611,-500.0,0.00027397,2]
[313896093,1707780642620,-150.93962415,0.00027509,4]
[313896094,1707780642630,-500.0,0.00027671,2]
[313896095,1707780642641,-500.0,0.00027945,2]
[313896096,1707780642651,-172.22759733,0.00027999,2]
[313896097,1707780642661,-500.0,0.00028,5]
[313896098,1707780642671,-154.92253873,0.0002807,2]
[313896099,1707780642683,-150.93962415,0.00028071,2]
[313896100,1707780642693,-1717.3410849,0.00028218,2]
[313896101,1707780642702,-500.0,0.00028219,2]
[313896102,1707780642711,-500.0,0.00028493,2]
[313896103,1707780642720,-500.0,0.00028767,2]
[313896104,1707780642729,-536.1971125,0.00028798,5]
[313896105,1707780642738,-830.95280452,0.00028798,2]
[313896106,1707780642747,-200.0,0.00028979,15]
[313896107,1707780642756,-200.0,0.00028979,15]
[313896108,1707780642766,-368.0,0.00028979,15]
[313896109,1707780642775,-583.00885683,0.00029,3]
[313896110,1707780642787,-155.0,0.00029,2]
[313896111,1707780642797,-352.09089738,0.0002904,10]
[313896112,1707780642806,-500.0,0.00029041,2]
[313896113,1707780642815,-240.33372205,0.00029315,2]
[313896114,1707780642824,-153.34627261,0.0002938,2]
[313896115,1707780642836,-154.92253873,0.00029998,7]
[313896116,1707780642847,-250.0,0.00029999,2]
[313896117,1707780642857,-8598.28508199,0.0003,2]
[313896118,1707780642868,-2591.76915834,0.0003,30]
[313896119,1707780642879,-577.5566721,0.0003,5]
[313896120,1707780642888,-60196.03259047,0.0003,4]
[313896133,1707780643694,-560.62714287,0.0003,4]
[313896176,1707780646654,-14403.97990726,0.0003,4]
[313896177,1707780646712,-463.36013766,0.0003,4]
[313896309,1707781837832,-506.48176332,0.00015887,2]
[313896356,1707781841005,-991.89891108,0.00015887,2]
[313896357,1707781841015,-1747.11162025,0.00015888,2]
[313896358,1707781841026,-535.87830444,0.00015889,2]
[313896359,1707781841037,-709.01116423,0.00015889,2]
[313896360,1707781841051,-16382.10872567,0.00015889,2]
[313896361,1707781841066,-4807.39124484,0.00015889,2]
[313896362,1707781841079,-13705.85329662,0.00015889,2]
[313896363,1707781841093,-1489.4456939,0.00015889,2]
[313896364,1707781841103,-718.02244128,0.0001589,2]
[313896383,1707781843987,-500.0,0.00015887,2]
[313896384,1707781844000,-1462.74466832,0.00015887,2]
[313896385,1707781844010,-24181.97755872,0.0001589,2]
[313896386,1707781844019,-200.0,0.00016683,2]
[313896387,1707781844029,-154.9690062,0.00016885,2]
[313896389,1707781844038,-1733.97919696,0.00016885,2]
[313896391,1707781844047,-652.00393196,0.00016886,2]
[313896393,1707781844056,-154.9690062,0.00016886,3]
[313896396,1707781844065,-163.83177483,0.00016905,2]
[313896397,1707781844074,-171.0131344,0.00017922,2]
[313896399,1707781844085,-280.0,0.00018352,2]
[313896400,1707781844094,-715.4821902,0.00018698,2]
[313896401,1707781844103,-1115.76610401,0.000195,2]
[313896402,1707781844112,-391.0,0.00020187,2]
[313896403,1707781844121,-200.0,0.00022205,7]
[313896404,1707781844130,-348.0,0.00022205,7]
[313896405,1707781844139,-12083.20565063,0.00022494,2]
[313896406,1707781844154,-2764.12984359,0.00022496,2]
[313896407,1707781844166,-9976.71224854,0.00023,2]
[313896408,1707781844176,-1264.21341125,0.00023,2]
[313896409,1707781844186,-674.8089244,0.00023081,2]
[313896410,1707781844196,-200.0,0.00024426,7]
[313896411,1707781844206,-200.0,0.00024426,7]
[313896412,1707781844216,-368.0,0.00024426,7]
[313896413,1707781844226,-500.55022621,0.0002447,5]
[313896414,1707781844236,-500.0,0.00024657,2]
[313896415,1707781844245,-500.0,0.00024657,2]
[313896416,1707781844254,-500.0,0.00024657,2]
[313896417,1707781844263,-500.0,0.00024657,2]
[313896418,1707781844272,-500.0,0.00024657,2]
[313896419,1707781844281,-411.54731639,0.00024657,2]
[313896420,1707781844290,-328.32735851,0.00024657,2]
[313896421,1707781844299,-500.0,0.00024657,2]
[313896422,1707781844308,-301.39,0.00024931,2]
[313896423,1707781844318,-500.0,0.00024931,2]
[313896424,1707781844327,-500.0,0.00024931,2]
[313896425,1707781844336,-7412.2245313,0.00025,2]
[313896426,1707781844346,-335.81448194,0.00025,2]
[313896427,1707781844355,-631.79,0.00025205,2]
[313896428,1707781844367,-188.95,0.00025205,2]
[313896429,1707781844376,-280.68844006,0.00026,2]
[313896430,1707781844386,-200.0,0.00026868,15]
[313896431,1707781844395,-200.0,0.00026868,15]
[313896432,1707781844405,-200.0,0.00026868,15]
[313896433,1707781844414,-200.0,0.00026868,15]
[313896434,1707781844423,-275.0,0.00026868,15]
[313896435,1707781844433,-154.92253873,0.00027,2]
[313896436,1707781844442,-3062.68810289,0.00027799,2]
[313896437,1707781844452,-800.496473,0.000278,2]
[313896438,1707781844462,-644.47772913,0.000279,2]
[313896439,1707781844470,-154.9690062,0.00028796,2]
[313896440,1707781844481,-1717.3410849,0.00028796,2]
[313896441,1707781844490,-155.09926353,0.00028797,2]
[313896442,1707781844499,-223.92102613,0.00028797,2]
[313896443,1707781844508,-763.88031577,0.00028798,5]
[313896444,1707781844517,-583.00885683,0.00029,3]
[313896445,1707781844526,-155.0,0.00029,2]
[313896446,1707781844535,-352.09089738,0.00029,10]
[313896447,1707781844544,-200.0,0.00029555,15]
[313896448,1707781844553,-200.0,0.00029555,15]
[313896449,1707781844562,-200.0,0.00029555,15]
[313896450,1707781844571,-200.0,0.00029555,15]
[313896451,1707781844580,-200.0,0.00029555,15]
[313896452,1707781844590,-200.0,0.00029555,15]
[313896453,1707781844599,-305.0,0.00029555,15]
[313896454,1707781844608,-157.97405275,0.00029684,2]
[313896455,1707781844618,-1356.56834191,0.00029999,2]
[313896456,1707781844627,-155.23564195,0.00029999,2]
[313896457,1707781844636,-250.0,0.00029999,2]
[313896458,1707781844645,-726.69529124,0.0003,5]
[313896459,1707781844654,-500.0,0.0003,5]
[313896460,1707781844663,-4776.82504555,0.0003,2]
[313896461,1707781844672,-2811.45439469,0.0003,4]
[313896462,1707781844681,-300.0,0.0003,4]
[313896463,1707781844690,-2462.92660662,0.0003,2]
[313896464,1707781844699,-154.92253873,0.0003,4]
[313896465,1707781844708,-309.66804359,0.0003,6]
[313896466,1707781844717,-1471.19840111,0.0003,2]
[313896467,1707781844727,-310.46737274,0.0003,5]
[313896468,1707781844736,-917.16956633,0.0003,4]
[313896469,1707781844745,-629.83232173,0.0003,4]
[313896470,1707781844754,-100510.91316467,0.0003,4]
[313896471,1707781844763,-1950.25122515,0.0003,4]
[313896472,1707781844773,-720.52223174,0.0003,14]
[313896473,1707781844782,-103490.7601703,0.0003,14]
[313896474,1707781844791,-474.29648487,0.0003,5]
[313896475,1707781844801,-4945.0,0.0003,10]
[313896476,1707781844810,-239.0,0.0003,2]
[313896477,1707781844821,-153.34627261,0.00030043,7]
[313896478,1707781844830,-155.0,0.0003037,2]
[313896479,1707781844840,-500.0,0.00030684,2]
[313896480,1707781844849,-154.93802479,0.00030795,2]
[313896481,1707781844859,-154.93802479,0.00030795,4]
[313896482,1707781844868,-24812.95067262,0.00030798,2]
[313896483,1707781844877,-150.95471359,0.00030846,2]
[313896484,1707781844886,-250.41575527,0.00030846,2]
[313896485,1707781844896,-167.92149,0.00030959,2]
[313896486,1707781844906,-167.92149,0.00030959,120]
[313896487,1707781844915,-10700.07388061,0.00031,2]
[313896488,1707781844924,-1947.72538333,0.00031,2]
[313896489,1707781844934,-155.42279768,0.00031,4]
[313896490,1707781844943,-5000.0,0.00031,7]
[313896491,1707781844952,-185.79028191,0.00031,20]
[313896492,1707781844962,-301.90942717,0.00031364,4]
[313896493,1707781844971,-633.40870616,0.00031369,2]
[313896494,1707781844981,-5000.0,0.000315,14]
[313896495,1707781844990,-18638.30057107,0.00031678,4]
[313896496,1707781844999,-777.0,0.0003168,2]
[313896497,1707781845008,-155.0,0.0003174,2]
[313896498,1707781845018,-61869.38,0.0003189,8]
[313896499,1707781845027,-603.81885434,0.00031891,7]
[313896500,1707781845036,-230.88249235,0.000319,3]
[313896501,1707781845045,-69357.18740591,0.000319,2]
[313896502,1707781845054,-150.5,0.0003197,35]
[313896503,1707781845063,-203.0,0.0003197,35]
[313896504,1707781845072,-244.0,0.0003197,35]
[313896505,1707781845081,-1610.0,0.0003197,35]
[313896506,1707781845091,-303.0,0.0003197,35]
[313896507,1707781845100,-1251.0,0.0003197,35]
[313896508,1707781845109,-293.0,0.0003197,35]
[313896509,1707781845118,-150.5,0.0003197,35]
[313896510,1707781845127,-169.29,0.0003197,35]
[313896511,1707781845136,-176.4,0.0003197,35]
[313896512,1707781845148,-150.5,0.0003197,35]
[313896513,1707781845158,-290.0,0.0003197,35]
[313896514,1707781845167,-150.5,0.0003198,35]
[313896515,1707781845176,-244.0,0.0003198,35]
[313896516,1707781845186,-203.0,0.0003198,35]
[313896517,1707781845195,-1610.0,0.0003198,35]
[313896518,1707781845204,-303.0,0.0003198,35]
[313896519,1707781845213,-1251.0,0.0003198,35]
[313896520,1707781845222,-293.0,0.0003198,35]
[313896521,1707781845231,-150.5,0.0003198,35]
[313896522,1707781845240,-150.5,0.0003198,35]
[313896523,1707781845249,-150.5,0.0003198,35]
[313896524,1707781845258,-150.5,0.0003198,35]
[313896525,1707781845267,-290.0,0.0003198,35]
[313896526,1707781845276,-150.5,0.0003199,35]
[313896527,1707781845285,-244.0,0.0003199,35]
[313896528,1707781845294,-203.0,0.0003199,35]
[313896529,1707781845303,-1610.0,0.0003199,35]
[313896530,1707781845312,-303.0,0.0003199,35]
[313896531,1707781845321,-1251.0,0.0003199,35]
[313896532,1707781845330,-293.0,0.0003199,35]
[313896533,1707781845338,-150.5,0.0003199,35]
[313896534,1707781845347,-150.5,0.0003199,35]
[313896535,1707781845357,-150.5,0.0003199,35]
[313896536,1707781845366,-150.5,0.0003199,35]
[313896537,1707781845375,-290.0,0.0003199,35]
[313896539,1707781845384,-266.55398921,0.00031998,4]
[313896540,1707781845394,-432.34717538,0.00031998,2]
[313896542,1707781845403,-362.01479741,0.00031998,4]
[313896544,1707781845412,-237.34232619,0.00031998,4]
[313896545,1707781845421,-906.46807467,0.00031998,4]
[313896546,1707781845431,-313.06031524,0.00031998,4]
[313896547,1707781845441,-364.58917028,0.00031998,4]
[313896548,1707781845449,-309.76767502,0.00031998,4]
[313896549,1707781845459,-247.39952375,0.00031998,4]
[313896550,1707781845468,-155.05116031,0.00031998,4]
[313896551,1707781845477,-500.0,0.00031998,4]
[313896552,1707781845486,-158.423577,0.00031998,4]
[313896553,1707781845495,-201.6297404,0.00031998,4]
[313896555,1707781845504,-155.13167759,0.00031998,4]
[313896557,1707781845512,-261.17070193,0.00031998,4]
[313896559,1707781845522,-159.8037019,0.00031998,120]
[313896560,1707781845531,-12700.58945955,0.00031998,4]
[313896561,1707781845539,-220.05024398,0.00031998,4]
[313896562,1707781845548,-416.72092419,0.00031998,4]
[313896563,1707781845568,-363.18255207,0.00031998,4]
[313896564,1707781845579,-155.05892239,0.00031998,2]
[313896565,1707781845588,-1445.15593814,0.00031998,4]
[313896566,1707781845597,-310.37042038,0.00031998,7]
[313896567,1707781845606,-187.57653618,0.00031998,4]
[313896569,1707781845616,-155.07443573,0.00031998,4]
[313896571,1707781845625,-399.76087564,0.00031998,4]
[313896573,1707781845635,-260.68486254,0.00031998,4]
[313896575,1707781845644,-718.43159895,0.00031998,4]
[313896577,1707781845654,-167.39276402,0.00031998,4]
[313896579,1707781845663,-175.67250555,0.00031999,4]
[313896581,1707781845672,-3744.69873029,0.00031999,2]
[313896583,1707781845682,-161.02822217,0.00031999,7]
[313896585,1707781845691,-509.21717075,0.00031999,7]
[313896586,1707781845701,-500.0,0.00031999,7]
[313896587,1707781845710,-217.58507873,0.00031999,7]
[313896588,1707781845720,-500.0,0.00031999,7]
[313896589,1707781845730,-609.65323744,0.00031999,7]
[313896590,1707781845741,-500.0,0.00031999,7]
[313896591,1707781845750,-630.34315104,0.00031999,7]
[313896592,1707781845760,-514.02007258,0.00031999,7]
[313896593,1707781845769,-500.0,0.00031999,7]
[313896594,1707781845779,-154.92253873,0.00032,4]
[313896595,1707781845788,-1573.0,0.00032,5]
[313896596,1707781845798,-67758.32923369,0.00032,10]
[313896598,1707781845808,-1037036.76724829,0.00032,15]
[313896720,1707782011019,-500.0,0.00032,120]
[313896721,1707782011043,-500.0,0.00032,120]
[313896722,1707782011065,-500.0,0.00032,120]
[313896723,1707782011089,-500.0,0.00032,120]
[313896724,1707782011111,-342.6,0.00032,120]
[313896930,1707783032194,-154.98450155,0.00015678,2]
[313896932,1707783032205,-158.56869746,0.00015679,2]
[313896933,1707783032214,-154.98450155,0.0001578,2]
[313896934,1707783032223,-821.43357407,0.00015785,2]
[313896936,1707783032233,-24900.0,0.00022566,2]
[313896937,1707783032254,-1264.21341125,0.00023201,2]
[313896938,1707783032264,-532.51702762,0.00023202,3]
[313896939,1707783032274,-159.75510829,0.00023202,3]
[313896940,1707783032284,-9976.71224854,0.00023204,2]
[313896942,1707783032294,-4986.88206946,0.00023205,2]
[313896944,1707783032303,-200.0,0.00023693,7]
[313896945,1707783032313,-262.64744473,0.00024657,2]
[313896946,1707783032322,-300.0,0.000249,11]
[313896947,1707783032333,-7412.2245313,0.00025,2]
[313896948,1707783032344,-335.81448194,0.00025,2]
[313896949,1707783032354,-280.0,0.00026062,7]
[313896951,1707783032363,-280.68844006,0.00026399,2]
[313896952,1707783032373,-300.0,0.000264,12]
[313896953,1707783032382,-3062.68810289,0.00027,2]
[313896954,1707783032392,-1716.592841,0.000278,2]
[313896955,1707783032401,-391.0,0.00028669,15]
[313896956,1707783032411,-154.98450155,0.00028797,2]
[313896957,1707783032420,-1717.3410849,0.00028797,2]
[313896958,1707783032430,-1088.0255572,0.00028798,2]
[313896959,1707783032439,-797.35163824,0.00028798,5]
[313896960,1707783032448,-155.0,0.000288,2]
[313896961,1707783032458,-284.26808029,0.00029,2]
[313896962,1707783032467,-303.74761441,0.00029,3]
[313896963,1707783032476,-155.0,0.00029,2]
[313896964,1707783032485,-183.43935753,0.00029,10]
[313896965,1707783032495,-159.45908485,0.000298,2]
[313896966,1707783032505,-6657.76,0.0002986,3]
[313896967,1707783032515,-7989.32,0.0002987,3]
[313896968,1707783032526,-9587.18,0.0002988,3]
[313896969,1707783032535,-9769.08182196,0.0002989,3]
[313896976,1707783038246,-500.0,0.00015678,2]
[313896977,1707783038365,-998.3806744,0.00015678,2]
[313896979,1707783038375,-4754.14680214,0.000299,2]
[313896982,1707783041180,-5548.14,0.0002989,3]
[313896983,1707783041191,-44431.61819793,0.000299,2]
[313896984,1707783041203,-1820.54347244,0.000299,2]
[313896985,1707783041298,-2021.56381413,0.000299,2]
[313896986,1707783041310,-267.36304732,0.000299,2]
[313896987,1707783041322,-2033.72801131,0.000299,2]
[313896988,1707783041335,-1708.79461699,0.000299,2]
[313896989,1707783041346,-1185.58919883,0.000299,2]
[313897019,1707783046169,-313.11416557,0.000299,2]
[313898199,1707784238309,-154.98450155,0.00018217,3]
[313898202,1707784238319,-135.83425931,0.00018217,2]
[313898323,1707784241690,-305.75,0.00018217,2]
[313898324,1707784241702,-362.68449822,0.00018217,2]
[313898325,1707784241715,-301.87875,0.00018217,2]
[313898326,1707784241730,-856.59716079,0.00018217,2]
[313898327,1707784241740,-3000.0,0.00018218,2]
[313898328,1707784241750,-1261.29566241,0.00018973,2]
[313898329,1707784241762,-237.08501199,0.00018973,2]
[313898330,1707784241772,-4967.73289123,0.00018988,2]
[313898331,1707784241784,-487.5164698,0.00018988,2]
[313898332,1707784241796,-1361.51496361,0.00018988,2]
[313898333,1707784241808,-10677.42306868,0.00018988,2]
[313898334,1707784241821,-403.5335302,0.00018988,2]
[313898335,1707784241832,-10249.42163677,0.00018988,2]
[313898336,1707784241845,-2035.716747,0.00018988,2]
[313898337,1707784241857,-2707.52563712,0.00018988,2]
[313898338,1707784241870,-4203.42518085,0.00018988,2]
[313898339,1707784241882,-20696.57481915,0.00018989,2]
[313898344,1707784243277,-450.50000002,0.00018989,2]
[313898367,1707784246225,-300.0,0.00018216,2]
[313898368,1707784246282,-1198.3806744,0.00018216,2]
[313898369,1707784246293,-3752.92518083,0.00018989,2]
[313898370,1707784246302,-157.64395396,0.000199,2]
[313898371,1707784246312,-5553.97,0.00019989,3]
[313898372,1707784246322,-10616.86400362,0.00019999,2]
[313898373,1707784246331,-63052.0,0.0002,2]
[313898374,1707784246340,-200.0,0.00020886,2]
[313898375,1707784246350,-280.0,0.00022974,7]
[313898376,1707784246359,-225.43220836,0.00023202,3]
[313898377,1707784246369,-1246.72051736,0.00023205,2]
[313898378,1707784246379,-311.68012934,0.00023205,2]
[313898379,1707784246388,-500.0,0.00024657,2]
[313898380,1707784246397,-500.0,0.00024657,2]
[313898381,1707784246406,-500.0,0.00024657,2]
[313898382,1707784246415,-190.86,0.00024657,2]
[313898383,1707784246425,-192.64443907,0.00024657,2]
[313898384,1707784246435,-500.0,0.00024657,2]
[313898385,1707784246445,-500.0,0.00024657,2]
[313898386,1707784246454,-524.55,0.00024657,2]
[313898387,1707784246463,-500.0,0.00024657,2]
[313898388,1707784246472,-441.00262042,0.00024657,2]
[313898389,1707784246481,-436.20556093,0.00024657,2]
[313898390,1707784246491,-500.0,0.00024657,2]
[313898391,1707784246500,-157.64395396,0.0002485,2]
[313898392,1707784246509,-500.0,0.00024931,2]
[313898393,1707784246519,-500.0,0.00024931,2]
[313898394,1707784246528,-500.0,0.00024931,2]
[313898395,1707784246651,-294.56,0.00024931,2]
[313898396,1707784246666,-7412.2245313,0.00025,2]
[313898397,1707784246676,-335.81448194,0.00025204,2]
[313898398,1707784246687,-199.87853,0.00025205,2]
[313898399,1707784246697,-432.55,0.00025205,2]
[313898400,1707784246707,-213.2903711,0.00025205,2]
[313898401,1707784246717,-391.0,0.00025272,7]
[313898402,1707784246727,-280.68844006,0.00026909,2]
[313898403,1707784246737,-177.26548855,0.0002691,2]
[313898404,1707784246746,-3062.68810289,0.00027,2]
[313898405,1707784246756,-200.0,0.00027799,15]
[313898406,1707784246765,-348.0,0.00027799,15]
[313898407,1707784246775,-429.65181942,0.000278,2]
[313898408,1707784246784,-1000.201796,0.00028,2]
[313898409,1707784246794,-1717.3410849,0.00028,2]
[313898410,1707784246804,-154.98450155,0.00028799,2]
[313898411,1707784246813,-155.0,0.000288,2]
[313898412,1707784246822,-303.74761441,0.00029,3]
[313898413,1707784246831,-183.43935753,0.00029,10]
[313898414,1707784246840,-593.15700845,0.00029799,2]
[313898415,1707784246849,-19784.93576176,0.000298,2]
[313898416,1707784246858,-35445.481,0.000298,30]
[313898417,1707784246868,-157.64395396,0.000298,2]
[313898418,1707784246877,-300.0,0.000299,2]
[313898419,1707784246889,-2092.52534233,0.000299,2]
[313898420,1707784246898,-766.49436698,0.000299,2]
[313898421,1707784246907,-230.48150101,0.000299,6]
[313898422,1707784246917,-1833.12108864,0.000299,2]
[313898423,1707784246927,-65722.24532071,0.000299,7]
[313898424,1707784246942,-15448.1955684,0.000299,7]
[313898457,1707785432556,-155.0,0.00018084,3]
[313898458,1707785432566,-1747.11162025,0.00018084,2]
[313898459,1707785432576,-821.43357407,0.00018085,2]
[313898460,1707785432586,-1498.3806744,0.00018085,2]
[313898461,1707785432595,-262.20626991,0.00023205,2]
[313898462,1707785432604,-167.633153,0.00024559,2]
[313898463,1707785432613,-500.0,0.00024657,2]
[313898464,1707785432623,-506.50023785,0.00024657,2]
[313898465,1707785432632,-503.90910947,0.00024657,2]
[313898466,1707785432641,-500.0,0.00024657,2]
[313898467,1707785432651,-603.46,0.00024657,2]
[313898468,1707785432660,-500.0,0.00024657,2]
[313898469,1707785432669,-502.00418658,0.00024657,2]
[313898470,1707785432678,-500.0,0.00024657,2]
[313898471,1707785432687,-500.0,0.00024657,2]
[313898472,1707785432696,-500.0,0.00024657,2]
[313898473,1707785432705,-500.0,0.00024657,2]
[313898474,1707785432715,-572.95459594,0.00024657,2]
[313898475,1707785432725,-200.0,0.00024657,2]
[313898476,1707785432737,-24900.0,0.00024845,2]
[313898477,1707785432746,-301.39,0.00024999,2]
[313898478,1707785432755,-500.0,0.00024999,2]
[313898479,1707785432764,-504.03338861,0.00024999,2]
[313898480,1707785432774,-335.81448194,0.00025,2]
[313898481,1707785432783,-280.68844006,0.00026,2]
[313898482,1707785432792,-7412.2245313,0.00026868,2]
[313898483,1707785432801,-178.81232176,0.00026869,2]
[313898484,1707785432810,-500.0,0.00026869,2]
[313898485,1707785432820,-184.82841689,0.00026869,2]
[313898486,1707785432829,-500.0,0.00026869,2]
[313898487,1707785432838,-590.13280965,0.00026869,2]
[313898488,1707785432848,-500.0,0.00026869,2]
[313898489,1707785432857,-500.0,0.00026869,2]
[313898490,1707785432867,-179.3551358,0.00026869,2]
[313898491,1707785432877,-500.0,0.00026869,2]
[313898492,1707785432887,-500.0,0.00026869,2]
[313898493,1707785432897,-3062.68810289,0.00027,2]
[313898494,1707785432906,-200.0,0.00027122,15]
[313898495,1707785432915,-448.05620587,0.000278,2]
[313898496,1707785432925,-150.0,0.00028,2]
[313898497,1707785432934,-155.0,0.00028,2]
[313898498,1707785432943,-1717.3410849,0.00028,2]
[313898499,1707785432953,-155.0,0.000289,2]
[313898500,1707785432963,-303.74761441,0.00029,3]
[313898501,1707785432972,-183.43935753,0.00029749,10]
[313898502,1707785432982,-154.92253873,0.0002975,2]
[313898503,1707785432991,-154.01369217,0.000298,2]
[313898504,1707785433001,-280.0,0.00029834,15]
[313898505,1707785433010,-310.3971413,0.00029836,2]
[313898506,1707785433019,-307.4096268,0.00029836,2]
[313898507,1707785433029,-4714.18,0.00029889,3]
[313898508,1707785433038,-308.96041202,0.00029899,2]
[313898509,1707785433047,-8995.32729988,0.00029899,2]
[313898510,1707785433060,-3432.60796271,0.00029899,2]
[313898511,1707785433071,-439.565,0.00029899,2]
[313898512,1707785433083,-324.21963533,0.00029899,2]
[313898552,1707785441749,-1321.1491288,0.00029899,2]
[313898553,1707785441807,-2470.14341978,0.00029899,2]
[313898554,1707785441819,-1884.21379952,0.00029899,2]
[313898555,1707785441828,-143.01451025,0.00029899,2]
[313898556,1707785441844,-2576.69943333,0.00029899,2]
[313898557,1707785441853,-258.3608514,0.00029899,2]
[313898558,1707785441862,-17304.67343429,0.000299,7]
[313898578,1707785446452,-2734.9099791,0.0002989,3]
[313898609,1707786133910,10000.0,0.000155,2]
[313898610,1707786142290,10000.0,0.000155,2]
[313898611,1707786148462,10000.0,0.000155,2]
[313898612,1707786156036,10000.0,0.000155,2]
[313898613,1707786163215,10000.0,0.000155,2]
[313898614,1707786170178,10000.0,0.000155,2]
[313898615,1707786176817,10000.0,0.000155,2]
[313898616,1707786185916,10000.0,0.000155,2]
[313898617,1707786200319,10000.0,0.000155,2]
[313898618,1707786211018,10000.0,0.000155,2]
[313898619,1707786218028,10000.0,0.000155,2]
[313898620,1707786225886,622.98169386,0.000155,2]
[313898623,1707786245897,653.96903999,0.000155,2]
[313898745,1707786638762,-155.0,0.00021995,4]
[313898746,1707786638771,-1498.3806744,0.00021999,2]
[313898747,1707786638780,-2000.0,0.00022,2]
[313898748,1707786638789,-335.81448194,0.00025,2]
[313898749,1707786638799,-323.51845529,0.00025,2]
[313898751,1707786638811,-1458.04317175,0.00025,2]
[313898766,1707786641852,-1999.31289041,0.00025,2]
[313898767,1707786641866,-2334.64517253,0.00025,2]
[313898786,1707786764737,-150.0,0.00032372,120]
[313898787,1707786764762,-150.0,0.00034276,120]
[313898788,1707786764786,-150.0,0.00034883,120]
[313898894,1707787837922,-161.66447433,0.00018844,2]
[313898895,1707787837932,-718.7552593,0.00018844,2]
[313898896,1707787837942,-154.95351395,0.00018845,3]
[313898897,1707787837952,-322.90813902,0.00018845,2]
[313898900,1707787841148,-1175.47253538,0.00018845,2]
[313898901,1707787841157,-154.95351395,0.00018846,2]
[313898902,1707787841167,-155.51614598,0.00018846,2]
[313898903,1707787841177,-247.38920084,0.00022,4]
[313898904,1707787841186,-298.70413724,0.000229,2]
[313898905,1707787841196,-612.16845224,0.00023205,2]